bitfinex/quotes_SOLUSD_20250514
["timestamp","ask_amount","ask_price","bid_price","bid_amount"]
[1747214363901,31.30628009,179.01,179.0,13.86732064]
[1747214364106,25.72,179.01,179.0,13.86732064]
[1747214366513,5.58541545,179.04,179.0,13.86732064]
[1747214366718,5.58541545,179.04,179.03,13.86732064]
[1747214367604,5.58503211,179.05,179.03,13.86732064]
[1747214368316,5.58503211,179.05,179.02,13.86732064]
[1747214368516,5.58503211,179.05,179.01,13.86732064]
[1747214368710,5.58503211,179.05,179.02,13.86732064]
[1747214371918,19.54761239,179.05,179.01,13.86732064]
[1747214372314,13.86732064,179.03,178.98,13.86732064]
[1747214372615,13.86732064,179.03,178.96,1.5333]
[1747214372616,13.86732064,179.03,178.96,27.5333]
[1747214372811,19.54761239,179.05,178.99,13.86732064]
[1747214373011,13.86732064,179.04,178.99,13.86732064]
[1747214373212,13.86732064,179.03,178.98,13.86732064]
[1747214374122,5.58596804,179.02,178.98,13.86732064]
[1747214374329,5.58596804,179.02,178.95,13.86732064]
[1747214374330,13.86732064,179.0,178.95,13.86732064]
[1747214374532,13.86732064,178.98,178.93,13.86732064]
[1747214375721,13.86732064,178.98,178.94,13.86732064]
[1747214375917,39.22732064,178.99,178.94,13.86732064]
[1747214376431,5.58721644,178.98,178.96,13.86732064]
[1747214376939,25.36,178.99,178.97,13.86732064]
[1747214377121,25.36,178.99,178.93,26.0]
[1747214377122,25.36,178.99,178.96,13.86732064]
[1747214377308,25.36,178.99,178.97,13.86732064]
[1747214377807,30.94703323,178.99,178.97,13.86732064]
[1747214378040,30.94703323,178.99,178.96,13.86732064]
[1747214379135,30.94703323,178.99,178.97,13.86732064]
[1747214379716,30.94703323,178.99,178.92,26.0]
[1747214379921,30.94703323,178.99,178.95,13.86732064]
[1747214380432,13.86732064,178.97,178.91,1.6291]
[1747214380617,13.86732064,178.95,178.9,13.86732064]
[1747214380820,13.86732064,178.95,178.87,1.5321]
[1747214380821,13.86732064,178.93,178.87,1.5321]
[1747214381026,13.86732064,178.93,178.88,13.86732064]
[1747214381330,13.86732064,178.9,178.85,13.86732064]
[1747214381529,25.36,178.89,178.85,13.86732064]
[1747214381926,5.59033989,178.88,178.85,13.86732064]
[1747214382637,5.59033989,178.88,178.79,1.5714]
[1747214382829,5.59033989,178.88,178.84,13.86732064]
[1747214383031,5.59033989,178.88,178.82,26.0]
[1747214383224,5.59033989,178.88,178.84,13.86732064]
[1747214383417,5.59033989,178.88,178.85,13.86732064]
[1747214385039,5.59033989,178.88,178.82,26.0]
[1747214385432,5.59033989,178.88,178.85,13.86732064]
[1747214385941,30.95010172,178.89,178.87,13.86732064]
[1747214386331,30.95010172,178.89,178.86,13.86732064]
[1747214386922,30.95010172,178.89,178.82,0.28432314]
[1747214387237,25.36,178.89,178.88,13.86732064]
[1747214388131,30.95007985,178.89,178.85,13.86732064]
[1747214388313,30.95007985,178.89,178.83,26.0]
[1747214388314,44.81740049,178.89,178.84,13.86732064]
[1747214388515,13.86732064,178.87,178.79,1.5714]
[1747214388836,13.86732064,178.87,178.83,13.86732064]
[1747214389842,13.86732064,178.87,178.82,13.86732064]
[1747214390340,19.5683775,178.86,178.82,13.86732064]
[1747214390518,33.43569814,178.86,178.81,13.86732064]
[1747214390718,33.43569814,178.86,178.79,1.5714]
[1747214390719,13.86732064,178.85,178.79,1.5714]
[1747214390940,13.86732064,178.85,178.8,13.86732064]
[1747214391744,13.86732064,178.83,178.78,13.86732064]
[1747214391927,13.86732064,178.79,178.7,1.6323]
[1747214392128,25.04,178.78,178.74,13.86732064]
[1747214392322,25.04,178.78,178.75,13.86732064]
[1747214392323,5.59377971,178.77,178.75,13.86732064]
[1747214392717,5.59377971,178.77,178.72,26.0]
[1747214392933,5.59377971,178.77,178.74,13.86732064]
[1747214393124,5.59377971,178.77,178.71,0.14216157]
[1747214393326,5.59377971,178.77,178.7,7.37041487]
[1747214393327,5.59377971,178.77,178.73,26.0]
[1747214393533,19.46110035,178.77,178.73,13.86732064]
[1747214394828,19.46110035,178.77,178.7,27.6323]
[1747214395033,13.86732064,178.76,178.71,13.86732064]
[1747214396524,33.44774021,178.75,178.7,13.86732064]
[1747214397041,33.44774021,178.75,178.65,22.04872064]
[1747214397042,19.46172623,178.75,178.65,22.04872064]
[1747214397251,19.46172623,178.75,178.7,13.86732064]
[1747214397449,19.46172623,178.75,178.69,26.0]
[1747214397750,19.46172623,178.75,178.7,13.86732064]
[1747214398053,33.44774021,178.75,178.7,13.86732064]
[1747214398827,5.59440559,178.75,178.72,13.86732064]
[1747214400359,26.28432314,178.81,178.72,13.86732064]
[1747214400360,6.5252,178.83,178.74,13.86732064]
[1747214400648,30.65221563,178.82,178.8,13.86732064]
[1747214400968,30.65221563,178.82,178.74,15.42132064]
[1747214401143,30.65221563,178.82,178.78,13.86732064]
[1747214401327,25.06,178.82,178.81,13.86732064]
[1747214402229,30.65221563,178.82,178.81,13.86732064]
[1747214402432,25.06,178.82,178.81,13.86732064]
[1747214402964,44.51953627,178.82,178.74,8.0521]
[1747214403134,44.51953627,178.82,178.75,13.86732064]
[1747214403135,13.86732064,178.8,178.75,13.86732064]
[1747214403462,44.63275471,178.82,178.7,6.3484]
[1747214403463,13.86732064,178.79,178.7,6.3484]
[1747214403635,13.86732064,178.78,178.73,13.86732064]
[1747214404033,13.86732064,178.78,178.7,6.3484]
[1747214404238,5.59409263,178.76,178.72,13.86732064]
[1747214404945,5.59409263,178.76,178.69,1.6267]
[1747214405249,19.57932422,178.76,178.72,13.86732064]
[1747214405754,33.44664486,178.76,178.71,13.86732064]
[1747214405927,33.44664486,178.76,178.69,27.6267]
[1747214406139,19.57932422,178.76,178.72,13.86732064]
[1747214406469,33.44664486,178.76,178.71,13.86732064]
[1747214406941,19.57932422,178.76,178.72,13.86732064]
[1747214407469,13.86732064,178.75,178.67,0.14216157]
[1747214407685,38.92732064,178.74,178.69,13.86732064]
[1747214408046,25.06,178.74,178.72,13.86732064]
[1747214408542,25.06,178.74,178.7,13.86732064]
[1747214408743,5.59503161,178.73,178.68,26.0]
[1747214408954,5.59503161,178.73,178.71,13.86732064]
[1747214409162,5.59503161,178.73,178.66,26.28432314]
[1747214409365,19.46235225,178.73,178.68,13.86732064]
[1747214409773,5.59503161,178.73,178.69,13.86732064]
[1747214410773,5.59503161,178.73,178.67,26.0]
[1747214410966,5.59503161,178.73,178.69,13.86732064]
[1747214411276,33.44993127,178.73,178.67,26.0]
[1747214411774,33.44993127,178.73,178.68,13.86732064]
[1747214411978,19.58261063,178.73,178.68,13.86732064]
[1747214412153,33.44993127,178.73,178.68,13.86732064]
[1747214412343,13.86732064,178.7,178.65,26.0]
[1747214412543,13.86732064,178.7,178.65,39.86732064]
[1747214412768,44.44261063,178.73,178.69,13.86732064]
[1747214412969,44.44261063,178.73,178.68,13.86732064]
[1747214413166,44.44261063,178.73,178.69,13.86732064]
[1747214413359,58.30993127,178.73,178.68,13.86732064]
[1747214413574,13.86732064,178.72,178.65,26.0]
[1747214413775,13.86732064,178.72,178.67,13.86732064]
[1747214414355,13.86732064,178.71,178.66,13.86732064]
[1747214414571,13.86732064,178.71,178.64,1.5891]
[1747214414765,13.86732064,178.69,178.65,13.86732064]
[1747214415146,5.59659726,178.68,178.65,13.86732064]
[1747214415572,5.59659726,178.68,178.63,26.0]
[1747214415757,5.59659726,178.68,178.65,13.86732064]
[1747214416284,5.59659726,178.68,178.6,1.6268]
[1747214416285,13.86732064,178.67,178.6,1.6268]
[1747214416581,25.08,178.66,178.62,13.86732064]
[1747214417159,13.86732064,178.63,178.55,8.0321]
[1747214417355,44.41137978,178.65,178.57,13.86732064]
[1747214417561,44.41137978,178.65,178.6,13.86732064]
[1747214417863,30.6769105,178.67,178.64,13.86732064]
[1747214418062,5.59668507,178.68,178.66,13.86732064]
[1747214418769,5.59668507,178.68,178.65,13.86732064]
[1747214418979,5.59628406,178.69,178.65,13.86732064]
[1747214419288,33.45431486,178.69,178.61,26.0]
[1747214419477,13.86732064,178.68,178.59,26.0]
[1747214419661,13.86732064,178.68,178.63,13.86732064]
[1747214419867,5.59628406,178.69,178.65,13.86732064]
[1747214420077,38.94732064,178.68,178.63,13.86732064]
[1747214420678,13.86732064,178.67,178.62,13.86732064]
[1747214420880,38.94732064,178.68,178.63,13.86732064]
[1747214421076,13.86732064,178.65,178.6,13.86732064]
[1747214421801,13.86732064,178.64,178.59,13.86732064]
[1747214421963,13.86732064,178.63,178.58,13.86732064]
[1747214422163,13.86732064,178.61,178.56,13.86732064]
[1747214422381,24.78,178.6,178.56,13.86732064]
[1747214422891,24.78,178.6,178.52,31.60148846]
[1747214422892,13.86732064,178.58,178.52,26.0]
[1747214423097,5.6000448,178.57,178.52,26.0]
[1747214423295,13.86732064,178.56,178.5,1.5651]
[1747214423463,5.6000448,178.57,178.5,1.5651]
[1747214423464,13.86732064,178.55,178.5,15.43242064]
[1747214423881,19.6001568,178.57,178.47,6.4326]
[1747214424082,19.6001568,178.57,178.51,13.86732064]
[1747214424283,13.86732064,178.56,178.51,13.86732064]
[1747214424488,19.46736544,178.57,178.52,13.86732064]
[1747214424672,13.86732064,178.56,178.52,13.86732064]
[1747214425086,5.60067208,178.55,178.52,13.86732064]
[1747214425289,13.86732064,178.53,178.43,6.1295]
[1747214425490,13.86732064,178.5,178.45,13.86732064]
[1747214425962,13.86732064,178.5,178.43,32.1295]
[1747214426363,24.78,178.52,178.48,13.86732064]
[1747214426763,13.86732064,178.51,178.46,13.86732064]
[1747214426966,13.86732064,178.5,178.45,13.86732064]
[1747214427184,13.86732064,178.48,178.42,1.5426]
[1747214427366,13.86732064,178.47,178.42,13.86732064]
[1747214428096,19.60894167,178.49,178.38,26.0]
[1747214428268,13.86732064,178.46,178.41,13.86732064]
[1747214428865,13.86732064,178.48,178.43,13.86732064]
[1747214429166,19.47023646,178.48,178.43,13.86732064]
[1747214429370,19.47023646,178.48,178.39,5.60569538]
[1747214429567,5.60291582,178.48,178.43,13.86732064]
[1747214429770,26.0,178.5,178.46,13.86732064]
[1747214429771,5.60224089,178.5,178.46,13.86732064]
[1747214429982,229.12930888,178.51,178.46,13.86732064]
[1747214430291,209.66,178.51,178.48,13.86732064]
[1747214430596,209.66,178.51,178.5,13.86732064]
[1747214431093,6.1964,178.57,178.5,13.86732064]
[1747214431094,5.59941766,178.59,178.5,13.86732064]
[1747214431270,24.78,178.58,178.54,13.86732064]
[1747214431593,24.78,178.58,178.56,13.86732064]
[1747214431804,24.78,178.58,178.57,13.86732064]
[1747214432173,209.66,178.62,178.57,13.86732064]
[1747214432368,234.46,178.62,178.6,13.86732064]
[1747214432571,240.05857395,178.62,178.59,13.86732064]
[1747214432775,13.86732064,178.61,178.54,26.0]
[1747214432975,13.86732064,178.59,178.54,13.86732064]
[1747214433200,19.46693024,178.59,178.54,13.86732064]
[1747214433388,5.5996096,178.59,178.55,13.86732064]
[1747214433571,19.46637534,178.61,178.56,13.86732064]
[1747214433771,5.5990547,178.61,178.57,13.86732064]
[1747214434168,19.46637534,178.61,178.52,5.6015739]
[1747214434373,19.46637534,178.61,178.56,13.86732064]
[1747214434680,13.86732064,178.57,178.51,26.0]
[1747214434894,13.86732064,178.56,178.47,7.168603]
[1747214435091,13.86732064,178.56,178.52,13.86732064]
[1747214435298,45.59796181,178.59,178.52,13.86732064]
[1747214435470,13.86732064,178.57,178.52,13.86732064]
[1747214435804,13.86732064,178.58,178.53,13.86732064]
[1747214436003,24.8,178.57,178.54,13.86732064]
[1747214436165,24.8,178.57,178.55,13.86732064]
[1747214436367,24.8,178.57,178.56,13.86732064]
[1747214437199,24.8,178.57,178.51,5.60192706]
[1747214437412,24.8,178.57,178.56,13.86732064]
[1747214439801,24.8,178.57,178.55,13.86732064]
[1747214440104,30.40008535,178.57,178.5,26.0]
[1747214440406,44.26740599,178.57,178.52,13.86732064]
[1747214441298,13.86732064,178.55,178.5,13.86732064]
[1747214441897,24.8,178.57,178.54,13.86732064]
[1747214442081,30.40007045,178.57,178.55,13.86732064]
[1747214442278,24.8,178.57,178.56,13.86732064]
[1747214443581,30.4000448,178.57,178.56,13.86732064]
[1747214444020,24.8,178.57,178.56,13.86732064]
[1747214444714,5.59948987,178.59,178.56,13.86732064]
[1747214444715,5.59901763,178.61,178.56,13.86732064]
[1747214445024,24.8,178.6,178.56,13.86732064]
[1747214445224,24.8,178.6,178.59,13.86732064]
[1747214446489,24.8,178.6,178.59,19.4667383]
[1747214446699,30.37731319,178.66,178.59,19.4667383]
[1747214446895,30.37731319,178.66,178.65,13.86732064]
[1747214446896,24.78,178.66,178.65,13.86732064]
[1747214449895,30.37722377,178.66,178.64,13.86732064]
[1747214450809,30.37722377,178.66,178.65,13.86732064]
[1747214451005,30.37722377,178.66,178.61,26.0]
[1747214451209,30.37722377,178.66,178.65,13.86732064]
[1747214451614,30.37722377,178.66,178.61,26.0]
[1747214451928,30.37722377,178.66,178.6,26.0]
[1747214452101,30.37722377,178.66,178.65,13.86732064]
[1747214452304,30.37722377,178.66,178.61,26.28432314]
[1747214452520,30.37722377,178.66,178.64,13.86732064]
[1747214453525,44.37028321,178.66,178.58,0.28432314]
[1747214453710,58.23760385,178.66,178.61,13.86732064]
[1747214454027,13.86732064,178.65,178.57,1.6116]
[1747214454229,13.86732064,178.65,178.6,13.86732064]
[1747214454620,44.37028321,178.66,178.62,13.86732064]
[1747214454804,30.37722377,178.66,178.62,13.86732064]
[1747214455001,44.37028321,178.66,178.62,13.86732064]
[1747214455206,13.86732064,178.64,178.58,26.0]
[1747214455405,13.86732064,178.63,178.58,13.86732064]
[1747214456840,19.59467024,178.62,178.58,13.86732064]
[1747214457040,19.59467024,178.62,178.55,26.0]
[1747214457246,13.86732064,178.6,178.55,13.86732064]
[1747214457434,13.86732064,178.59,178.53,13.86732064]
[1747214457738,47.58705631,178.62,178.51,13.86732064]
[1747214457739,13.86732064,178.56,178.51,13.86732064]
[1747214457917,13.86732064,178.55,178.5,21.71733374]
[1747214458229,24.5,178.58,178.5,7.8500131]
[1747214458230,13.86732064,178.54,178.5,7.8500131]
[1747214458733,13.86732064,178.54,178.48,13.86732064]
[1747214458931,19.60454825,178.53,178.48,13.86732064]
[1747214459422,13.86732064,178.52,178.47,39.86732064]
[1747214459624,24.5,178.51,178.47,13.86732064]
[1747214459847,38.36732064,178.51,178.45,13.86732064]
[1747214460016,38.36732064,178.51,178.39,32.5117]
[1747214460017,13.86732064,178.47,178.42,13.86732064]
[1747214460222,13.86732064,178.46,178.41,13.86732064]
[1747214460724,13.86732064,178.43,178.34,8.2317]
[1747214460907,19.47238762,178.41,178.36,13.86732064]
[1747214461312,24.5,178.42,178.34,34.2317]
[1747214461313,24.5,178.42,178.37,26.0]
[1747214461836,43.97221052,178.42,178.37,39.86732064]
[1747214462038,24.5,178.42,178.39,13.86732064]
[1747214462337,24.5,178.42,178.41,13.86732064]
[1747214462840,24.52,178.48,178.42,5.60475283]
[1747214463011,24.52,178.48,178.47,13.86732064]
[1747214464814,24.52,178.48,178.47,19.47050324]
[1747214465021,24.52,178.48,178.47,59.62214702]
[1747214465313,5.60026618,178.57,178.5,26.0]
[1747214465314,24.52,178.54,178.5,26.0]
[1747214465513,24.52,178.54,178.53,13.86732064]
[1747214465922,209.62,178.59,178.53,39.86732064]
[1747214466122,209.62,178.59,178.58,13.86732064]
[1747214467847,24.52,178.6,178.58,13.86732064]
[1747214468058,24.52,178.6,178.59,39.86732064]
[1747214468851,30.11910414,178.6,178.59,13.86732064]
[1747214470244,24.52,178.6,178.59,13.86732064]
[1747214470545,24.52,178.6,178.59,39.86732064]
[1747214471122,30.11910414,178.6,178.59,39.86732064]
[1747214471339,24.52,178.6,178.59,39.86732064]
[1747214471645,24.52,178.67,178.62,26.0]
[1747214471840,24.52,178.67,178.65,13.86732064]
[1747214472217,24.52,178.67,178.64,13.86732064]
[1747214472442,38.38732064,178.67,178.62,13.86732064]
[1747214472753,24.52,178.67,178.64,13.86732064]
[1747214473262,24.52,178.67,178.65,13.86732064]
[1747214473424,24.52,178.67,178.66,13.86732064]
[1747214473619,24.52,178.67,178.63,26.0]
[1747214473825,30.11693864,178.67,178.6,0.14216157]
[1747214474030,30.11693864,178.67,178.62,13.86732064]
[1747214474262,30.11693864,178.67,178.64,13.86732064]
[1747214474425,30.11693864,178.67,178.63,13.86732064]
[1747214474626,30.11693864,178.67,178.64,13.86732064]
[1747214474970,30.11693864,178.67,178.63,13.86732064]
[1747214475150,30.11693864,178.67,178.59,26.14216157]
[1747214475151,13.86732064,178.66,178.61,13.86732064]
[1747214475656,13.86732064,178.62,178.57,1.5959]
[1747214475958,13.86732064,178.63,178.58,13.86732064]
[1747214476729,13.86732064,178.62,178.57,15.46322064]
[1747214477145,13.86732064,178.61,178.53,0.14216157]
[1747214477331,24.5,178.6,178.56,13.86732064]
[1747214477523,24.5,178.6,178.58,13.86732064]
[1747214477948,30.09910414,178.6,178.54,26.0]
[1747214478229,30.09910414,178.6,178.57,13.86732064]
[1747214478553,30.09910414,178.6,178.56,13.86732064]
[1747214478851,43.96642478,178.6,178.55,13.86732064]
[1747214479930,57.96418513,178.6,178.55,13.86732064]
[1747214480239,57.96418513,178.6,178.51,8.14556157]
[1747214480240,13.86732064,178.58,178.53,13.86732064]
[1747214480634,13.86732064,178.57,178.52,13.86732064]
[1747214480830,13.86732064,178.58,178.51,27.5989]
[1747214481039,44.09686449,178.6,178.53,13.86732064]
[1747214481244,30.09910414,178.6,178.57,13.86732064]
[1747214481570,30.09910414,178.6,178.58,13.86732064]
[1747214481946,30.09910414,178.6,178.56,13.86732064]
[1747214482148,13.86732064,178.59,178.51,1.5989]
[1747214482355,13.86732064,178.59,178.54,13.86732064]
[1747214482552,13.86732064,178.59,178.53,26.0]
[1747214482762,13.86732064,178.55,178.5,26.0]
[1747214483062,13.86732064,178.55,178.5,39.86732064]
[1747214483566,13.86732064,178.52,178.46,1.6014]
[1747214483742,29.88192706,178.51,178.47,13.86732064]
[1747214483938,29.88192706,178.51,178.48,13.86732064]
[1747214484649,24.28,178.51,178.48,13.86732064]
[1747214484990,24.28,178.51,178.5,39.86732064]
[1747214485862,29.90008321,178.57,178.5,45.46956153]
[1747214486061,29.90008321,178.57,178.53,13.86732064]
[1747214486362,24.3,178.57,178.54,13.86732064]
[1747214486663,24.3,178.57,178.55,13.86732064]
[1747214486854,24.3,178.57,178.54,13.86732064]
[1747214487257,24.3,178.57,178.56,13.86732064]
[1747214487445,24.3,178.58,178.56,13.86732064]
[1747214487446,24.3,178.61,178.56,13.86732064]
[1747214487641,24.3,178.61,178.59,13.86732064]
[1747214488145,24.3,178.61,178.6,13.86732064]
[1747214490357,24.3,178.61,178.57,0.28432314]
[1747214490545,24.3,178.61,178.6,13.86732064]
[1747214490952,29.89891329,178.61,178.56,27.5476]
[1747214491154,24.3,178.61,178.6,13.86732064]
[1747214493066,29.89879066,178.61,178.59,13.86732064]
[1747214493286,29.89879066,178.61,178.51,1.68146157]
[1747214493287,13.86732064,178.6,178.51,1.68146157]
[1747214493446,29.89879066,178.61,178.47,20.05532064]
[1747214493447,13.86732064,178.56,178.47,20.05532064]
[1747214493650,13.86732064,178.56,178.51,13.86732064]
[1747214493866,5.60067208,178.55,178.5,39.86732064]
[1747214494260,5.60067208,178.55,178.52,13.86732064]
[1747214495467,38.16732064,178.54,178.48,13.86732064]
[1747214495846,33.47186889,178.53,178.48,13.86732064]
[1747214496051,33.47186889,178.53,178.43,6.1477]
[1747214496052,13.86732064,178.51,178.43,6.1477]
[1747214496290,13.86732064,178.52,178.47,13.86732064]
[1747214496582,5.6012995,178.53,178.49,13.86732064]
[1747214497875,5.60255476,178.49,178.41,1.524]
[1747214498057,19.4698754,178.49,178.44,13.86732064]
[1747214498579,19.4698754,178.49,178.42,26.0]
[1747214498881,19.4698754,178.49,178.44,13.86732064]
[1747214499290,19.4698754,178.49,178.41,1.524]
[1747214499291,5.60255476,178.49,178.45,13.86732064]
[1747214501583,38.16732064,178.45,178.4,13.86732064]
[1747214501786,5.60412463,178.44,178.4,13.86732064]
[1747214502353,19.47144527,178.44,178.35,7.6312]
[1747214502554,19.47144527,178.44,178.39,13.86732064]
[1747214502780,13.86732064,178.43,178.36,26.0]
[1747214502970,13.86732064,178.41,178.3,8.0601]
[1747214503163,13.86732064,178.41,178.36,13.86732064]
[1747214503579,19.61443621,178.44,178.36,13.86732064]
[1747214503789,5.60538116,178.4,178.36,13.86732064]
[1747214503984,5.60538116,178.4,178.3,8.0601]
[1747214503985,13.86732064,178.37,178.3,1.5375]
[1747214504172,13.86732064,178.37,178.32,13.86732064]
[1747214504173,24.3,178.36,178.32,13.86732064]
[1747214504682,24.3,178.36,178.3,1.5375]
[1747214504683,24.3,178.36,178.34,13.86732064]
[1747214504863,24.3,178.36,178.35,13.86732064]
[1747214506190,24.3,178.39,178.35,13.86732064]
[1747214506393,24.3,178.39,178.38,13.86732064]
[1747214506585,24.3,178.39,178.38,27.73464128]
[1747214506893,209.76,178.42,178.38,27.73464128]
[1747214507095,209.76,178.42,178.41,13.86732064]
[1747214507278,24.3,178.45,178.41,20.57737718]
[1747214507479,24.3,178.45,178.38,20.57737718]
[1747214507480,24.3,178.45,178.43,20.57737718]
[1747214507686,29.90392019,178.45,178.39,26.0]
[1747214507994,24.3,178.45,178.43,20.57737718]
[1747214508378,29.90382855,178.45,178.43,20.57737718]
[1747214508767,29.90382855,178.45,178.42,20.57737718]
[1747214509296,29.90382855,178.45,178.41,20.57737718]
[1747214509499,50.48120573,178.45,178.4,20.57737718]
[1747214510176,50.48120573,178.45,178.37,20.57737718]
[1747214510177,20.57737718,178.42,178.37,20.57737718]
[1747214510387,43.91335502,178.45,178.36,20.57737718]
[1747214510388,20.57737718,178.41,178.36,20.57737718]
[1747214510590,26.0,178.44,178.32,6.5545]
[1747214510591,20.57737718,178.42,178.37,20.57737718]
[1747214510786,20.57737718,178.42,178.38,20.57737718]
[1747214510989,20.57737718,178.42,178.35,26.0]
[1747214511201,20.57737718,178.41,178.35,26.0]
[1747214511380,20.57737718,178.41,178.36,20.57737718]
[1747214511582,20.57737718,178.4,178.3,1.5375]
[1747214511890,20.57737718,178.39,178.34,20.57737718]
[1747214512099,20.57737718,178.39,178.32,26.0]
[1747214512100,29.92600964,178.38,178.33,26.0]
[1747214512277,29.92600964,178.38,178.34,20.57737718]
[1747214513170,5.60575497,178.39,178.35,20.57737718]
[1747214513369,24.1,178.38,178.35,20.57737718]
[1747214513881,20.57737718,178.36,178.3,1.5375]
[1747214514076,5.60695262,178.35,178.31,20.57737718]
[1747214514277,20.57737718,178.34,178.26,1.6199]
[1747214514492,20.57737718,178.33,178.28,20.57737718]
[1747214515179,20.57737718,178.3,178.23,22.82583146]
[1747214515371,20.57737718,178.27,178.22,20.57737718]
[1747214515567,20.57737718,178.28,178.22,20.57737718]
[1747214516097,5.60946878,178.27,178.22,20.57737718]
[1747214516394,5.60946878,178.27,178.18,7.7311]
[1747214516395,20.57737718,178.26,178.18,7.7311]
[1747214516576,20.57737718,178.26,178.2,20.57737718]
[1747214516776,20.57737718,178.26,178.21,20.57737718]
[1747214517300,5.60946878,178.27,178.22,20.57737718]
[1747214517301,26.18684596,178.27,178.22,20.57737718]
[1747214517673,24.1,178.29,178.25,20.57737718]
[1747214517875,24.1,178.29,178.28,20.57737718]
[1747214519588,24.1,178.29,178.28,26.18653131]
[1747214519900,24.1,178.29,178.28,20.57737718]
[1747214520398,209.82,178.39,178.28,99.34435735]
[1747214520601,24.12,178.38,178.35,20.57737718]
[1747214521082,20.57737718,178.37,178.28,7.9308]
[1747214521280,20.57737718,178.37,178.29,26.0]
[1747214521598,20.57737718,178.37,178.32,20.57737718]
[1747214521807,24.12,178.38,178.35,20.57737718]
[1747214522199,5.60632393,178.37,178.36,20.57737718]
[1747214522401,5.60632393,178.37,178.33,20.57737718]
[1747214522577,5.60632393,178.37,178.34,20.57737718]
[1747214522778,5.60632393,178.37,178.29,46.57737718]
[1747214523077,5.60632393,178.37,178.35,20.57737718]
[1747214523277,29.72606492,178.38,178.36,20.57737718]
[1747214524079,29.72606492,178.38,178.3,18.933972]
[1747214524296,29.72606492,178.38,178.36,20.57737718]
[1747214524496,20.57737718,178.37,178.29,26.0]
[1747214524807,20.57737718,178.32,178.27,20.57737718]
[1747214525188,44.69737718,178.31,178.26,20.57737718]
[1747214525388,24.12,178.3,178.26,20.57737718]
[1747214526283,5.60883953,178.29,178.26,20.57737718]
[1747214526702,20.57737718,178.28,178.23,22.14837718]
[1747214527008,5.60883953,178.29,178.25,20.57737718]
[1747214528806,5.60883953,178.29,178.23,1.571]
[1747214529102,26.18621671,178.29,178.24,20.57737718]
[1747214529477,26.18621671,178.29,178.23,1.571]
[1747214529675,26.18621671,178.29,178.24,20.57737718]
[1747214529900,20.57737718,178.27,178.22,20.57737718]
[1747214530104,20.57737718,178.26,178.21,20.57737718]
[1747214530311,5.61009817,178.25,178.21,20.57737718]
[1747214530479,5.61009817,178.25,178.19,26.0]
[1747214530892,5.61009817,178.25,178.21,20.57737718]
[1747214531300,5.61009817,178.25,178.22,20.57737718]
[1747214531505,5.61009817,178.25,178.21,20.57737718]
[1747214532103,5.60946878,178.27,178.24,20.57737718]
[1747214532302,5.60946878,178.27,178.2,39.36918761]
[1747214532303,5.60883953,178.29,178.26,20.57737718]
[1747214532508,38.14170344,178.3,178.2,39.36918761]
[1747214532509,24.12,178.3,178.28,20.57737718]
[1747214532686,24.12,178.3,178.29,20.57737718]
[1747214533387,24.12,178.37,178.32,26.0]
[1747214533582,20.57737718,178.36,178.3,26.0]
[1747214533780,20.57737718,178.35,178.3,20.57737718]
[1747214534216,20.57737718,178.32,178.24,1.6364]
[1747214534394,5.60852495,178.3,178.27,20.57737718]
[1747214534906,5.60789591,178.32,178.29,20.57737718]
[1747214535088,5.60789591,178.32,178.3,20.57737718]
[1747214535290,5.60789591,178.32,178.3,13.94981279]
[1747214535709,5.60695262,178.35,178.31,13.94981279]
[1747214535906,5.60667206,178.36,178.34,13.94981279]
[1747214536191,5.60667206,178.36,178.33,13.94981279]
[1747214536387,5.60667206,178.36,178.28,26.0]
[1747214536617,19.6232677,178.36,178.32,13.94981279]
[1747214536799,5.60667206,178.36,178.34,13.94981279]
[1747214537110,5.60667206,178.36,178.33,13.94981279]
[1747214537323,20.60537002,178.34,178.29,20.60537002]
[1747214538092,20.60537002,178.34,178.3,20.60537002]
[1747214538398,5.60789591,178.32,178.28,20.60537002]
[1747214538602,20.60537002,178.35,178.3,20.60537002]
[1747214538801,44.54537002,178.36,178.31,20.60537002]
[1747214539188,5.60695262,178.35,178.32,20.60537002]
[1747214539991,5.60695262,178.35,178.29,26.0]
[1747214540192,26.21232264,178.35,178.31,20.60537002]
[1747214540914,26.21232264,178.35,178.29,26.0]
[1747214540915,40.22970419,178.35,178.3,20.60537002]
[1747214541118,40.22970419,178.35,178.25,5.89435443]
[1747214541119,20.60537002,178.33,178.28,20.60537002]
[1747214541816,19.62433417,178.35,178.26,26.0]
[1747214541817,20.60537002,178.34,178.29,20.60537002]